fUSD/lending_fUSD_20250105
["ID","MTS","AMOUNT","RATE_DAILY","PERIOD"]
[347691753,1736068244810,-9614.0,0.00010071,2]
[347691754,1736068244819,-150.619,0.00010071,2]
[347691755,1736068244828,-1561.81,0.00010071,2]
[347691756,1736068244836,-1105.896,0.00010071,2]
[347691757,1736068244846,-150.0,0.00010099,2]
[347691758,1736068244855,-150.0,0.00010124,2]
[347691759,1736068244864,-153.53,0.00010137,2]
[347691760,1736068244873,-543.89,0.00010137,2]
[347691761,1736068244882,-1691.38,0.00010164,2]
[347691762,1736068244891,-1060.65,0.00010164,2]
[347691763,1736068244900,-2187.92,0.00010164,2]
[347691764,1736068244909,-903.87,0.00010164,2]
[347691765,1736068244918,-500.0,0.00010164,2]
[347691766,1736068244927,-652.25,0.00010164,2]
[347691767,1736068244937,-2217.75569496,0.00010164,2]
[347691768,1736068244948,-1301.24430504,0.00010164,2]
[347691769,1736068244957,-39387.0,0.00010164,2]
[347691770,1736068244966,-800.0,0.00010168,2]
[347691771,1736068244976,-1987.0,0.00010178,5]
[347691772,1736068244986,-198.34,0.0001019,2]
[347691773,1736068244995,-9818.0,0.00010192,2]
[347691774,1736068245003,-150.0,0.00010192,2]
[347691775,1736068245012,-150.0,0.00010192,2]
[347691776,1736068245022,-150.0,0.00010192,2]
[347691777,1736068245031,-150.0,0.00010192,2]
[347691778,1736068245040,-251.8,0.000102,2]
[347691779,1736068245049,-8184.75986106,0.000102,4]
[347691780,1736068245058,-1308.0,0.000102,2]
[347691781,1736068245067,-300.0,0.000102,4]
[347691782,1736068245077,-327.24,0.000102,3]
[347691783,1736068245086,-3760.23082051,0.000102,2]
[347691784,1736068245096,-1970.50619727,0.000102,2]
[347691785,1736068245105,-4103.05963997,0.000102,2]
[347691786,1736068245115,-500.0,0.00010208,2]
[347691787,1736068245124,-50920.46225048,0.00010209,2]
[347691788,1736068245133,-151.0,0.00010209,2]
[347691789,1736068245142,-151.0,0.0001021,2]
[347691790,1736068245151,-500.0,0.0001021,2]
[347691791,1736068245160,-6585.59,0.0001021,2]
[347691792,1736068245170,-586.09,0.0001021,2]
[347691793,1736068245179,-976.02,0.0001021,2]
[347691794,1736068245188,-500.0,0.0001021,2]
[347691795,1736068245197,-500.0,0.0001021,2]
[347691796,1736068245206,-500.0,0.0001021,2]
[347691797,1736068245214,-963.89,0.0001021,2]
[347691798,1736068245223,-500.0,0.0001021,2]
[347691799,1736068245232,-500.0,0.0001021,2]
[347691800,1736068245241,-284.26,0.0001021,2]
[347691801,1736068245251,-500.0,0.0001021,2]
[347691802,1736068245261,-4124.52,0.0001021,2]
[347691803,1736068245270,-4070.16,0.0001021,2]
[347691804,1736068245279,-16793.39,0.0001021,2]
[347691806,1736068245290,-4343.83,0.0001021,2]
[347691807,1736068245300,-500.0,0.0001021,2]
[347691809,1736068245309,-500.0,0.0001021,2]
[347691811,1736068245321,-30456.90936604,0.00010211,2]
[347691812,1736068245331,-505.3468668,0.00010211,2]
[347691813,1736068245340,-1778.18517736,0.00010211,2]
[347691815,1736068245352,-2236.53666341,0.00010211,2]
[347691816,1736068245361,-500.0,0.00010212,2]
[347691817,1736068245371,-500.0,0.00010212,2]
[347691818,1736068245381,-568.14,0.00010212,2]
[347691819,1736068245392,-525.46,0.00010212,2]
[347691820,1736068245402,-728.0,0.00010213,2]
[347691821,1736068245411,-58923.28186877,0.00010213,2]
[347691822,1736068245422,-6896.51447676,0.00010213,2]
[347691823,1736068245438,-501.37117726,0.00010213,2]
[347691824,1736068245449,-50823.59026493,0.00010213,2]
[347691825,1736068245462,-78972.51844297,0.00010213,2]
[347691826,1736068245482,-10084.50379836,0.00010213,2]
[347691840,1736068246010,-1644.5419948,0.00010213,2]
[347691842,1736068246021,-14372.74776098,0.00010213,2]
[347691845,1736068246037,-318.26635,0.00010213,2]
[347691847,1736068246048,-17476.08560783,0.00010213,2]
[347691849,1736068246059,-17409.75744359,0.00010213,2]
[347691852,1736068246074,-5300.98098371,0.00010213,2]
[347691855,1736068246091,-603563.83426406,0.00010213,2]
[347691857,1736068246106,-3771.173325,0.00010213,2]
[347691860,1736068246116,-1824.74822752,0.00010213,2]
[347691862,1736068246127,-3039.9,0.00010213,2]
[347691864,1736068246138,-505.29381851,0.00010213,2]
[347691888,1736068246550,-360.08234564,0.00010213,2]
[347691889,1736068246562,-5952.26330786,0.00010213,2]
[347691890,1736068246573,-3639.57057755,0.00010213,2]
[347691891,1736068246587,-3120.0000015,0.00010213,2]
[347691892,1736068246598,-376.87925389,0.00010213,2]
[347691893,1736068246609,-2527.49365929,0.00010213,2]
[347691894,1736068246619,-184465.51052005,0.00010213,2]
[347691895,1736068246630,-15226.61512752,0.00010213,2]
[347691896,1736068246641,-602.80619902,0.00010213,2]
[347691897,1736068246654,-10891.79636766,0.00010213,2]
[347691905,1736068673355,339.57867567,6.881e-05,7]
[347691906,1736068790617,500.0,0.0002,120]
[347691907,1736068790879,500.0,0.0002,120]
[347691908,1736068791170,230.26,0.0002,120]
[347691909,1736068978062,500.0,0.00022,120]
[347691910,1736068991276,500.0,0.00022,120]
[347691911,1736069002232,500.0,0.00022,120]
[347691912,1736069011434,500.0,0.00022,120]
[347691913,1736069021173,500.0,0.00022,120]
[347691914,1736069031103,500.0,0.00022,120]
[347691915,1736069041424,500.0,0.00022,120]
[347691916,1736069053928,500.0,0.00022,120]
[347691917,1736069064387,500.0,0.00022,120]
[347691918,1736069074095,501.0,0.00022,120]
[347691919,1736069200668,-330.62048866,8e-05,2]
[347691921,1736069309357,-8983.0,8e-05,2]
[347691930,1736069431887,-28734.637034,8e-05,2]
[347691931,1736069432168,-61951.74247734,8e-05,2]
[347691932,1736069432180,-1500.0,8.116e-05,2]
[347691933,1736069432189,-324.2116231,8.116e-05,2]
[347691934,1736069432199,-669.36,8.219e-05,2]
[347691935,1736069432208,-250.0,8.387e-05,2]
[347691936,1736069432218,-38172.27590158,8.422e-05,2]
[347691937,1736069432230,-559.83,8.422e-05,2]
[347691938,1736069432239,-4960.79,8.422e-05,2]
[347691939,1736069432250,-7457.82,8.422e-05,2]
[347691940,1736069432263,-4198.3,8.422e-05,2]
[347691941,1736069432273,-4094.36,8.422e-05,2]
[347691942,1736069432283,-4851.66,8.422e-05,2]
[347691943,1736069432293,-732.12,8.422e-05,2]
[347691944,1736069432303,-5759.95,8.422e-05,2]
[347691945,1736069432313,-547.0071292,8.422e-05,2]
[347691946,1736069432323,-500.0,8.422e-05,2]
[347691947,1736069432333,-500.0,8.422e-05,2]
[347691948,1736069432343,-1619.28,8.422e-05,2]
[347691949,1736069432353,-778.29,8.422e-05,2]
[347691950,1736069432363,-1061.37,8.422e-05,2]
[347691951,1736069432372,-500.0,8.422e-05,2]
[347691952,1736069432381,-500.0,8.422e-05,2]
[347691953,1736069432391,-500.0,8.422e-05,2]
[347691954,1736069432401,-500.0,8.422e-05,2]
[347691955,1736069432410,-50878.61307901,8.423e-05,2]
[347691961,1736069437799,-313.32248165,8.422e-05,2]
[347691962,1736069437811,-186.67751835,8.422e-05,2]
[347691963,1736069437820,-82.58498515,8.422e-05,2]
[347691964,1736069437915,-417.41501485,8.422e-05,2]
[347691965,1736069437926,-500.0,8.422e-05,2]
[347691966,1736069437936,-500.0,8.422e-05,2]
[347691967,1736069437946,-500.0,8.422e-05,2]
[347691968,1736069437956,-74064.21407711,8.423e-05,2]
[347691969,1736069437968,-1630.50195593,8.423e-05,2]
[347691970,1736069437979,-2988.69624306,8.423e-05,2]
[347691971,1736069437990,-932.17791228,8.423e-05,2]
[347691972,1736069438031,-33413.09728001,8.423e-05,2]
[347691973,1736069438040,-250.0,8.542e-05,2]
[347691974,1736069438049,-814.28,8.577e-05,2]
[347691975,1736069438058,-4058.48493034,8.577e-05,2]
[347691976,1736069438091,-19841.51506966,8.577e-05,2]
[347691977,1736069438101,-153.04,8.614e-05,2]
[347691978,1736069438110,-327.18,8.652e-05,2]
[347691979,1736069438119,-250.0,8.671e-05,2]
[347691980,1736069438128,-559.83,8.696e-05,2]
[347691981,1736069438138,-4960.79,8.696e-05,2]
[347691982,1736069438147,-7457.82,8.696e-05,2]
[347691983,1736069438156,-4198.3,8.696e-05,2]
[347691984,1736069438166,-4094.36,8.696e-05,2]
[347691985,1736069438175,-4851.66,8.696e-05,2]
[347691986,1736069438184,-732.12,8.696e-05,2]
[347691987,1736069438193,-5759.95,8.696e-05,2]
[347691988,1736069438202,-500.0,8.696e-05,2]
[347691989,1736069438211,-500.0,8.696e-05,2]
[347691991,1736069438221,-1619.28,8.696e-05,2]
[347691993,1736069438230,-778.29,8.696e-05,2]
[347691995,1736069438239,-1061.37,8.696e-05,2]
[347691997,1736069438249,-615.38,8.696e-05,2]
[347691999,1736069438258,-500.0,8.696e-05,2]
[347692001,1736069438267,-500.0,8.696e-05,2]
[347692003,1736069438276,-500.0,8.696e-05,2]
[347692004,1736069438285,-500.0,8.696e-05,2]
[347692005,1736069438294,-500.0,8.696e-05,2]
[347692006,1736069438303,-500.0,8.696e-05,2]
[347692007,1736069438312,-167.49,8.719e-05,2]
[347692008,1736069438321,-559.83,8.97e-05,2]
[347692009,1736069438330,-4960.79,8.97e-05,2]
[347692010,1736069438339,-7457.82,8.97e-05,2]
[347692011,1736069438348,-4198.3,8.97e-05,2]
[347692012,1736069438357,-4094.36,8.97e-05,2]
[347692013,1736069438366,-4851.66,8.97e-05,2]
[347692014,1736069438376,-732.12,8.97e-05,2]
[347692015,1736069438385,-5759.95,8.97e-05,2]
[347692016,1736069438394,-500.0,8.97e-05,2]
[347692017,1736069438403,-500.0,8.97e-05,2]
[347692018,1736069438412,-1619.28,8.97e-05,2]
[347692019,1736069438421,-778.29,8.97e-05,2]
[347692020,1736069438430,-1061.37,8.97e-05,2]
[347692022,1736069438439,-500.0,8.97e-05,2]
[347692024,1736069438449,-500.0,8.97e-05,2]
[347692026,1736069438458,-500.0,8.97e-05,2]
[347692028,1736069438467,-500.0,8.97e-05,2]
[347692030,1736069438476,-521.8234233,8.97e-05,2]
[347692044,1736069438606,-500.0,8.97e-05,2]
[347692045,1736069438617,-577.73364577,9.092e-05,2]
[347692046,1736069438627,-286.51,9.129e-05,2]
[347692047,1736069438636,-150.0,9.173e-05,2]
[347692048,1736069438646,-150.0,9.173e-05,2]
[347692049,1736069438655,-150.0,9.173e-05,2]
[347692050,1736069438664,-164.07641763,9.173e-05,2]
[347692051,1736069438674,-150.0,9.173e-05,2]
[347692052,1736069438683,-1146.65753817,9.189e-05,2]
[347692053,1736069438692,-150.0,9.217e-05,2]
[347692054,1736069438701,-150.0,9.233e-05,2]
[347692055,1736069438710,-559.83,9.244e-05,2]
[347692056,1736069438719,-4960.79,9.244e-05,2]
[347692057,1736069438729,-7457.82,9.244e-05,2]
[347692058,1736069438738,-4198.3,9.244e-05,2]
[347692059,1736069438747,-4094.36,9.244e-05,2]
[347692060,1736069438756,-4851.66,9.244e-05,2]
[347692061,1736069438765,-732.12,9.244e-05,2]
[347692062,1736069438774,-5759.95,9.244e-05,2]
[347692063,1736069438783,-500.0,9.244e-05,2]
[347692064,1736069438793,-500.0,9.244e-05,2]
[347692065,1736069438803,-1619.28,9.244e-05,2]
[347692066,1736069438812,-778.29,9.244e-05,2]
[347692067,1736069438821,-1061.37,9.244e-05,2]
[347692068,1736069438830,-500.0,9.244e-05,2]
[347692069,1736069438839,-500.0,9.244e-05,2]
[347692070,1736069438849,-500.0,9.244e-05,2]
[347692071,1736069438858,-500.0,9.244e-05,2]
[347692072,1736069438867,-150.0,9.261e-05,2]
[347692073,1736069438881,-837.28086291,9.261e-05,2]
[347692074,1736069438890,-150.0,9.265e-05,2]
[347692075,1736069438899,-150.0,9.293e-05,2]
[347692076,1736069438907,-150.0,9.306e-05,2]
[347692077,1736069438917,-150.0,9.35e-05,2]
[347692078,1736069438927,-150.0,9.352e-05,2]
[347692079,1736069438936,-150.0,9.358e-05,2]
[347692080,1736069438946,-150.0,9.394e-05,2]
[347692081,1736069438956,-150.0,9.412e-05,2]
[347692082,1736069438966,-150.0,9.438e-05,2]
[347692083,1736069438975,-150.0,9.451e-05,2]
[347692084,1736069438985,-150.0,9.472e-05,2]
[347692085,1736069438995,-150.0,9.483e-05,2]
[347692086,1736069439004,-559.83,9.518e-05,2]
[347692087,1736069439013,-4960.79,9.518e-05,2]
[347692088,1736069439022,-7457.82,9.518e-05,2]
[347692089,1736069439031,-4198.3,9.518e-05,2]
[347692090,1736069439041,-4094.36,9.518e-05,2]
[347692091,1736069439050,-4851.66,9.518e-05,2]
[347692092,1736069439059,-732.12,9.518e-05,2]
[347692093,1736069439067,-5759.95,9.518e-05,2]
[347692094,1736069439076,-588.59355986,9.518e-05,2]
[347692095,1736069439085,-500.0,9.518e-05,2]
[347692096,1736069439094,-1619.28,9.518e-05,2]
[347692097,1736069439104,-778.29,9.518e-05,2]
[347692098,1736069439113,-1061.37,9.518e-05,2]
[347692099,1736069439122,-500.0,9.518e-05,2]
[347692100,1736069439131,-500.0,9.518e-05,2]
[347692101,1736069439139,-500.0,9.518e-05,2]
[347692102,1736069439148,-150.0,9.527e-05,2]
[347692103,1736069439157,-150.0,9.532e-05,2]
[347692104,1736069439167,-150.0,9.543e-05,2]
[347692105,1736069439175,-150.0,9.571e-05,2]
[347692106,1736069439184,-150.0,9.592e-05,2]
[347692107,1736069439193,-150.0,9.616e-05,2]
[347692108,1736069439203,-7285.0,9.618e-05,2]
[347692109,1736069439212,-150.0,9.636e-05,2]
[347692110,1736069439221,-814.28,9.649e-05,2]
[347692111,1736069439229,-150.0,9.652e-05,2]
[347692112,1736069439238,-150.0,9.66e-05,2]
[347692113,1736069439247,-150.0,9.682e-05,2]
[347692114,1736069439256,-291.893,9.7e-05,2]
[347692115,1736069439266,-150.0,9.704e-05,2]
[347692116,1736069439276,-150.0,9.712e-05,2]
[347692117,1736069439285,-150.0,9.729e-05,2]
[347692118,1736069439294,-150.0,9.749e-05,2]
[347692119,1736069439304,-150.0,9.772e-05,2]
[347692120,1736069439313,-559.83,9.792e-05,2]
[347692121,1736069439322,-4960.79,9.792e-05,2]
[347692122,1736069439331,-1334.11793051,9.792e-05,2]
[347692123,1736069439352,-6123.70206949,9.792e-05,2]
[347692124,1736069439362,-4198.3,9.792e-05,2]
[347692125,1736069439371,-4094.36,9.792e-05,2]
[347692126,1736069439380,-4133.63793051,9.792e-05,2]
[347692127,1736069439420,1050.0,0.00022,120]
[347692130,1736069439848,-718.02206949,9.792e-05,2]
[347692131,1736069439858,-732.12,9.792e-05,2]
[347692132,1736069439868,-5759.95,9.792e-05,2]
[347692133,1736069439881,-500.0,9.792e-05,2]
[347692134,1736069439891,-1619.28,9.792e-05,2]
[347692135,1736069439900,-778.29,9.792e-05,2]
[347692136,1736069439910,-1061.37,9.792e-05,2]
[347692137,1736069439919,-500.0,9.792e-05,2]
[347692138,1736069439928,-500.0,9.792e-05,2]
[347692139,1736069439937,-500.0,9.792e-05,2]
[347692140,1736069439947,-150.0,9.793e-05,2]
[347692141,1736069439956,-150.0,9.821e-05,2]
[347692142,1736069439966,-150.0,9.832e-05,2]
[347692143,1736069439976,-1955.14,9.836e-05,2]
[347692144,1736069439985,-875.99,9.836e-05,2]
[347692145,1736069439994,-150.0,9.837e-05,2]
[347692146,1736069440003,-150.0,9.882e-05,2]
[347692147,1736069440013,-150.0,9.892e-05,2]
[347692148,1736069440023,-199.9799,9.898e-05,2]
[347692149,1736069440033,-1622.8088,9.899e-05,2]
[347692150,1736069440043,-5000.0,9.913e-05,2]
[347692151,1736069440053,-150.0,9.914e-05,2]
[347692152,1736069440064,-150.0,9.926e-05,2]
[347692153,1736069440073,-150.0,9.952e-05,2]
[347692154,1736069440084,-150.0,9.97e-05,2]
[347692155,1736069440094,-3949.93,9.992e-05,2]
[347692156,1736069440104,-4246.97,9.992e-05,2]
[347692157,1736069440113,-709.82,9.992e-05,2]
[347692158,1736069440123,-500.0,9.992e-05,2]
[347692159,1736069440132,-500.0,9.992e-05,2]
[347692160,1736069440141,-500.0,9.992e-05,2]
[347692161,1736069440151,-500.0,9.992e-05,2]
[347692162,1736069440161,-500.0,9.992e-05,2]
[347692163,1736069440170,-4554.72,9.992e-05,2]
[347692164,1736069440180,-500.0,9.992e-05,2]
[347692165,1736069440189,-500.0,9.992e-05,2]
[347692166,1736069440199,-500.0,9.992e-05,2]
[347692167,1736069440208,-3070.79,9.992e-05,2]
[347692168,1736069440217,-500.0,9.992e-05,2]
[347692169,1736069440226,-1000.0,9.992e-05,2]
[347692176,1736069440350,-500.0,9.992e-05,2]
[347692177,1736069440359,-500.0,9.992e-05,2]
[347692178,1736069440368,-500.0,9.992e-05,2]
[347692179,1736069440377,-500.0,9.992e-05,2]
[347692180,1736069440386,-500.0,9.997e-05,2]
[347692181,1736069440396,-500.0,9.997e-05,2]
[347692182,1736069440405,-500.0,9.997e-05,2]
[347692183,1736069440415,-500.0,9.997e-05,2]
[347692184,1736069440424,-500.0,9.997e-05,2]
[347692185,1736069440433,-500.0,9.997e-05,2]
[347692186,1736069440442,-500.0,9.997e-05,2]
[347692187,1736069440452,-500.0,9.997e-05,2]
[347692188,1736069440461,-500.0,9.997e-05,2]
[347692189,1736069440470,-500.0,9.997e-05,2]
[347692190,1736069440479,-500.0,9.997e-05,2]
[347692191,1736069440487,-500.0,9.997e-05,2]
[347692192,1736069440496,-500.0,9.997e-05,2]
[347692193,1736069440505,-500.0,9.997e-05,2]
[347692194,1736069440514,-500.0,9.997e-05,2]
[347692195,1736069440523,-500.0,9.997e-05,2]
[347692196,1736069440532,-500.0,9.997e-05,2]
[347692197,1736069440541,-500.0,9.997e-05,2]
[347692198,1736069440551,-500.0,9.997e-05,2]
[347692199,1736069440560,-465.0,9.997e-05,2]
[347692200,1736069440568,-500.0,9.997e-05,2]
[347692201,1736069440578,-500.0,9.997e-05,2]
[347692202,1736069440587,-660.38,9.997e-05,2]
[347692203,1736069440596,-500.0,9.997e-05,2]
[347692204,1736069440606,-500.0,9.997e-05,2]
[347692205,1736069440615,-690.12,9.997e-05,2]
[347692206,1736069440625,-500.0,9.997e-05,2]
[347692207,1736069440634,-500.0,9.997e-05,2]
[347692208,1736069440644,-500.0,9.997e-05,2]
[347692209,1736069440653,-500.0,9.997e-05,2]
[347692210,1736069440661,-500.0,9.997e-05,2]
[347692211,1736069440670,-500.0,9.997e-05,2]
[347692212,1736069440680,-500.0,9.997e-05,2]
[347692213,1736069440689,-500.0,9.997e-05,2]
[347692214,1736069440698,-500.0,9.997e-05,2]
[347692215,1736069440707,-500.0,9.997e-05,2]
[347692216,1736069440716,-500.0,9.997e-05,2]
[347692217,1736069440725,-500.0,9.997e-05,2]
[347692218,1736069440734,-500.0,9.997e-05,2]
[347692219,1736069440743,-500.0,9.997e-05,2]
[347692220,1736069440753,-500.0,9.997e-05,2]
[347692221,1736069440762,-500.0,9.997e-05,2]
[347692222,1736069440771,-500.0,9.997e-05,2]
[347692223,1736069440780,-609.12,9.997e-05,2]
[347692224,1736069440789,-740.27,9.997e-05,2]
[347692225,1736069440798,-500.0,9.997e-05,2]
[347692226,1736069440807,-500.0,9.997e-05,2]
[347692227,1736069440816,-500.0,9.997e-05,2]
[347692228,1736069440825,-500.0,9.997e-05,2]
[347692229,1736069440835,-500.0,9.997e-05,2]
[347692230,1736069440843,-500.0,9.997e-05,2]
[347692231,1736069440853,-500.0,9.997e-05,2]
[347692232,1736069440862,-500.0,9.997e-05,2]
[347692233,1736069440872,-500.0,9.997e-05,2]
[347692234,1736069440883,-500.0,9.997e-05,2]
[347692235,1736069440892,-500.0,9.997e-05,2]
[347692236,1736069440902,-500.0,9.997e-05,2]
[347692237,1736069440911,-576.27,9.997e-05,2]
[347692238,1736069440919,-500.0,9.997e-05,2]
[347692239,1736069440929,-500.0,9.997e-05,2]
[347692240,1736069440938,-500.0,9.997e-05,2]
[347692241,1736069440947,-500.0,9.997e-05,2]
[347692242,1736069440956,-500.0,9.997e-05,2]
[347692243,1736069440965,-500.0,9.997e-05,2]
[347692244,1736069440974,-500.0,9.997e-05,2]
[347692245,1736069440983,-500.0,9.997e-05,2]
[347692246,1736069440992,-500.0,9.997e-05,2]
[347692247,1736069441000,-500.0,9.997e-05,2]
[347692248,1736069441010,-500.0,9.997e-05,2]
[347692249,1736069441020,-500.0,9.997e-05,2]
[347692250,1736069441029,-500.0,9.997e-05,2]
[347692251,1736069441038,-500.0,9.997e-05,2]
[347692252,1736069441047,-500.0,9.997e-05,2]
[347692253,1736069441057,-500.0,9.997e-05,2]
[347692254,1736069441067,-500.0,9.997e-05,2]
[347692255,1736069441077,-211.25,9.997e-05,2]
[347692256,1736069441088,-500.0,9.997e-05,2]
[347692257,1736069441098,-500.0,9.997e-05,2]
[347692258,1736069441107,-500.0,9.997e-05,2]
[347692259,1736069441116,-500.0,9.997e-05,2]
[347692260,1736069441125,-500.0,9.997e-05,2]
[347692261,1736069441135,-500.0,9.997e-05,2]
[347692262,1736069441144,-674.95,9.997e-05,2]
[347692263,1736069441153,-500.0,9.997e-05,2]
[347692264,1736069441162,-721.29,9.997e-05,2]
[347692265,1736069441171,-500.0,9.997e-05,2]
[347692266,1736069441181,-500.0,9.997e-05,2]
[347692267,1736069441190,-500.0,9.997e-05,2]
[347692268,1736069441199,-500.0,9.997e-05,2]
[347692269,1736069441208,-500.0,9.997e-05,2]
[347692270,1736069441217,-500.0,9.998e-05,2]
[347692271,1736069441226,-500.0,9.998e-05,2]
[347692272,1736069441235,-500.0,9.998e-05,2]
[347692273,1736069441244,-522.2,9.998e-05,2]
[347692274,1736069441253,-500.0,9.998e-05,2]
[347692275,1736069441263,-500.0,9.998e-05,2]
[347692276,1736069441272,-500.0,9.998e-05,2]
[347692277,1736069441280,-500.0,9.998e-05,2]
[347692278,1736069441289,-500.0,9.998e-05,2]
[347692279,1736069441299,-500.0,9.998e-05,2]
[347692280,1736069441308,-500.0,9.998e-05,2]
[347692281,1736069441317,-500.0,9.998e-05,2]
[347692282,1736069441326,-500.0,9.998e-05,2]
[347692283,1736069441336,-500.0,9.998e-05,2]
[347692284,1736069441345,-500.0,9.998e-05,2]
[347692285,1736069441355,-607.59,9.998e-05,2]
[347692286,1736069441364,-500.0,9.998e-05,2]
[347692287,1736069441373,-500.0,9.998e-05,2]
[347692288,1736069441383,-672.71,9.998e-05,2]
[347692289,1736069441393,-500.0,9.998e-05,2]
[347692290,1736069441403,-974.11,9.999e-05,2]
[347692291,1736069441413,-2096.76,9.999e-05,2]
[347692292,1736069441424,-531.96,9.999e-05,2]
[347692293,1736069441435,-599.02,9.999e-05,2]
[347692294,1736069441445,-500.0,9.999e-05,2]
[347692295,1736069441455,-585.62,9.999e-05,2]
[347692296,1736069441465,-512.24,9.999e-05,2]
[347692297,1736069441474,-5000.0,9.999e-05,2]
[347692298,1736069441484,-500.0,9.999e-05,2]
[347692299,1736069441493,-1022.27,9.999e-05,2]
[347692300,1736069441503,-1022.27,9.999e-05,2]
[347692301,1736069441513,-500.0,9.999e-05,2]
[347692302,1736069441522,-500.0,9.999e-05,2]
[347692303,1736069441532,-500.0,9.999e-05,2]
[347692304,1736069441541,-500.0,9.999e-05,2]
[347692305,1736069441552,-500.0,9.999e-05,2]
[347692306,1736069441562,-500.0,9.999e-05,2]
[347692307,1736069441572,-500.0,9.999e-05,2]
[347692308,1736069441581,-500.0,9.999e-05,2]
[347692309,1736069441591,-500.0,9.999e-05,2]
[347692310,1736069441600,-500.0,9.999e-05,2]
[347692311,1736069441609,-554.46,9.999e-05,2]
[347692312,1736069441618,-536.26,9.999e-05,2]
[347692313,1736069441627,-697.48,9.999e-05,2]
[347692314,1736069441636,-705.03,9.999e-05,2]
[347692315,1736069441646,-6594.5,9.999e-05,2]
[347692316,1736069441657,-743.26,9.999e-05,2]
[347692317,1736069441666,-1284.36,9.999e-05,2]
[347692318,1736069441676,-579.96,9.999e-05,2]
[347692319,1736069441686,-500.0,9.999e-05,2]
[347692320,1736069441694,-500.0,9.999e-05,2]
[347692321,1736069441702,-500.0,9.999e-05,2]
[347692322,1736069441712,-1363.99,9.999e-05,2]
[347692323,1736069441721,-500.0,9.999e-05,2]
[347692324,1736069441730,-500.0,9.999e-05,2]
[347692325,1736069441739,-500.0,9.999e-05,2]
[347692326,1736069441749,-500.0,9.999e-05,2]
[347692327,1736069441758,-500.0,9.999e-05,2]
[347692328,1736069441768,-500.0,9.999e-05,2]
[347692329,1736069441777,-4008.14,9.999e-05,2]
[347692330,1736069441787,-148730.99705149,0.0001,2]
[347692331,1736069441796,-1006.0,0.0001,2]
[347692332,1736069441805,-150.0,0.00010006,2]
[347692333,1736069441814,-150.0,0.00010012,2]
[347692334,1736069441824,-882.22,0.00010012,2]
[347692335,1736069441833,-500.0,0.00010012,2]
[347692336,1736069441843,-525.89,0.00010012,2]
[347692337,1736069441853,-1418.84,0.00010012,2]
[347692338,1736069441862,-634.44,0.00010012,2]
[347692339,1736069441974,-1238.08,0.00010012,2]
[347692340,1736069441983,-606.47,0.00010012,2]
[347692341,1736069441992,-507.14,0.00010012,2]
[347692342,1736069442001,-500.0,0.00010012,2]
[347692343,1736069442010,-500.0,0.00010012,2]
[347692344,1736069442018,-500.0,0.00010012,2]
[347692345,1736069442028,-1029.8,0.00010012,2]
[347692346,1736069442038,-500.0,0.00010012,2]
[347692347,1736069442047,-500.0,0.00010012,2]
[347692348,1736069442056,-933.59,0.00010012,2]
[347692349,1736069442065,-1270.56,0.00010012,2]
[347692350,1736069442074,-500.0,0.00010012,2]
[347692351,1736069442083,-500.0,0.00010012,2]
[347692352,1736069442092,-500.0,0.00010012,2]
[347692353,1736069442102,-500.0,0.00010012,2]
[347692354,1736069442111,-500.0,0.00010012,2]
[347692355,1736069442120,-500.0,0.00010012,2]
[347692356,1736069442130,-500.0,0.00010012,2]
[347692357,1736069442139,-500.0,0.00010012,2]
[347692358,1736069442148,-506.91,0.00010012,2]
[347692359,1736069442157,-1637.09,0.00010012,2]
[347692360,1736069442166,-500.0,0.00010012,2]